[Event "Titled Tuesday Blitz March 01 Early 2022"]
[White "Jaferian, Koosha"]
[Black "Matlakov, Maxim"]
[WhiteFideId "12507440"]
[BlackFideId "4168003"]
[WhiteElo "2027"]
[BlackElo "2661"]
[Result "0-1"]
[Round "03"]
[TimeControl "180+1"]
[Date "2022.03.01"]
[WhiteClock "0:00:04"]
[BlackClock "0:00:47"]

1. Nf3 {[%clk 0:03:00]}  Nf6 {[%clk 0:02:59]} 2. b3 {[%clk 0:03:00]}  d5 {[%clk 0:02:59]} 3. Bb2 {[%clk 0:03:01]}  Bg4 {[%clk 0:02:59]} 4. e3 {[%clk 0:03:01]}  Nbd7 {[%clk 0:02:59]} 5. d4 {[%clk 0:03:01]}  e6 {[%clk 0:02:59]} 6. Be2 {[%clk 0:03:01]}  Bd6 {[%clk 0:02:59]} 7. O-O {[%clk 0:03:02]}  O-O {[%clk 0:02:58]} 8. Nbd2 {[%clk 0:03:02]}  Qe7 {[%clk 0:02:57]} 9. c4 {[%clk 0:03:02]}  c6 {[%clk 0:02:57]} 10. Qc2 {[%clk 0:02:58]}  Bf5 {[%clk 0:02:53]} 11. Bd3 {[%clk 0:02:58]}  Bxd3 {[%clk 0:02:52]} 12. Qxd3 {[%clk 0:02:59]}  a5 {[%clk 0:02:52]} 13. e4 {[%clk 0:02:53]}  dxe4 {[%clk 0:02:50]} 14. Nxe4 {[%clk 0:02:54]}  Nxe4 {[%clk 0:02:50]} 15. Qxe4 {[%clk 0:02:55]}  Nf6 {[%clk 0:02:51]} 16. Qe2 {[%clk 0:02:52]}  a4 {[%clk 0:02:51]} 17. Bc3 {[%clk 0:02:53]}  Ra6 {[%clk 0:02:46]} 18. Rfb1 {[%clk 0:02:42]}  Rfa8 {[%clk 0:02:45]} 19. b4 {[%clk 0:02:42]}  Rc8 {[%clk 0:02:37]} 20. Be1 {[%clk 0:02:11]}  a3 {[%clk 0:02:24]} 21. Rb3 {[%clk 0:02:04]}  Ra4 {[%clk 0:02:24]} 22. Rab1 {[%clk 0:01:52]}  h6 {[%clk 0:02:23]} 23. Qd3 {[%clk 0:01:44]}  Rca8 {[%clk 0:02:13]} 24. b5 {[%clk 0:01:40]}  c5 {[%clk 0:02:11]} 25. dxc5 {[%clk 0:01:33]}  Bxc5 {[%clk 0:02:12]} 26. Bc3 {[%clk 0:01:32]}  Rd8 {[%clk 0:02:09]} 27. Qe2 {[%clk 0:01:20]}  Ng4 {[%clk 0:02:05]} 28. Be1 {[%clk 0:01:17]}  Qc7 {[%clk 0:01:56]} 29. h3 {[%clk 0:01:15]}  Nf6 {[%clk 0:01:56]} 30. Bc3 {[%clk 0:01:07]}  Rxc4 {[%clk 0:01:50]} 31. Bxf6 {[%clk 0:01:01]}  gxf6 {[%clk 0:01:51]} 32. Kh1 {[%clk 0:00:41]}  Qf4 {[%clk 0:01:44]} 33. Rf1 {[%clk 0:00:23]}  Qe4 {[%clk 0:01:39]} 34. Qxe4 {[%clk 0:00:17]}  Rxe4 {[%clk 0:01:40]} 35. Rc3 {[%clk 0:00:17]}  b6 {[%clk 0:01:40]} 36. Rc2 {[%clk 0:00:14]}  Rb4 {[%clk 0:01:37]} 37. Nd2 {[%clk 0:00:08]}  Rb2 {[%clk 0:01:30]} 38. Rxb2 {[%clk 0:00:09]}  axb2 {[%clk 0:01:30]} 39. Nb3 {[%clk 0:00:06]}  Ba3 {[%clk 0:01:22]} 40. Rb1 {[%clk 0:00:05]}  Rc8 {[%clk 0:01:20]} 41. Kh2 {[%clk 0:00:04]}  Rc1 {[%clk 0:01:18]} 42. Nd2 {[%clk 0:00:05]}  Rc2 {[%clk 0:01:18]} 43. Nb3 {[%clk 0:00:03]}  Rxf2 {[%clk 0:01:18]} 44. Kg3 {[%clk 0:00:03]}  Rc2 {[%clk 0:01:16]} 45. Kf4 {[%clk 0:00:03]}  Rc1 {[%clk 0:01:16]} 46. Nd2 {[%clk 0:00:03]}  Rc5 {[%clk 0:01:12]} 47. Ke3 {[%clk 0:00:01]}  Rxb5 {[%clk 0:01:12]} 48. Nc4 {[%clk 0:00:02]}  Bc5+ {[%clk 0:01:09]} 49. Kd3 {[%clk 0:00:02]}  Rb4 {[%clk 0:00:45]} 50. Rxb2 {[%clk 0:00:02]}  Ra4 {[%clk 0:00:45]} 51. Nxb6 {[%clk 0:00:01]}  Bxb6 {[%clk 0:00:44]} 52. Rxb6 {[%clk 0:00:02]}  Rxa2 {[%clk 0:00:45]} 53. g4 {[%clk 0:00:02]}  Ra3+ {[%clk 0:00:45]} 54. Ke4 {[%clk 0:00:02]}  Rxh3 {[%clk 0:00:46]} 55. Kf4 {[%clk 0:00:03]}  Kg7 {[%clk 0:00:46]} 56. Rb7 {[%clk 0:00:03]}  h5 {[%clk 0:00:45]} 57. gxh5 {[%clk 0:00:03]}  Rxh5 {[%clk 0:00:46]} 58. Kg4 {[%clk 0:00:04]}  Rg5+ {[%clk 0:00:47]} 0-1


[Site "https://www.chess.com"]

[Event "Titled Tuesday Blitz March 01 Early 2022"]
[White "Janaszak, Dawid"]
[Black "Muradov, Soltan"]
[WhiteFideId "1119206"]
[BlackFideId "14002108"]
[WhiteElo "2199"]
[BlackElo "1854"]
[Result "1-0"]
[Round "03"]
[TimeControl "180+1"]
[Date "2022.03.01"]
[WhiteClock "0:00:13"]
[BlackClock "0:00:06"]

1. e4 {[%clk 0:03:00]}  e5 {[%clk 0:03:00]} 2. Nf3 {[%clk 0:02:56]}  Nf6 {[%clk 0:03:00]} 3. Nxe5 {[%clk 0:02:55]}  d6 {[%clk 0:03:00]} 4. Nf3 {[%clk 0:02:55]}  Nxe4 {[%clk 0:03:01]} 5. Nc3 {[%clk 0:02:56]}  Nxc3 {[%clk 0:03:02]} 6. dxc3 {[%clk 0:02:57]}  Nc6 {[%clk 0:03:02]} 7. Be3 {[%clk 0:02:57]}  Be7 {[%clk 0:03:03]} 8. Bd3 {[%clk 0:02:56]}  Be6 {[%clk 0:03:03]} 9. Qe2 {[%clk 0:02:56]}  h6 {[%clk 0:02:52]} 10. O-O-O {[%clk 0:02:55]}  Qd7 {[%clk 0:02:52]} 11. Bb5 {[%clk 0:02:52]}  a6 {[%clk 0:02:52]} 12. Ne5 {[%clk 0:02:48]}  axb5 {[%clk 0:02:36]} 13. Nxd7 {[%clk 0:02:48]}  Kxd7 {[%clk 0:02:37]} 14. a3 {[%clk 0:02:44]}  Bc4 {[%clk 0:02:22]} 15. Qg4+ {[%clk 0:02:43]}  Be6 {[%clk 0:02:22]} 16. Qh5 {[%clk 0:02:32]}  Ra5 {[%clk 0:02:17]} 17. Qf3 {[%clk 0:02:21]}  Ne5 {[%clk 0:02:17]} 18. Qxb7 {[%clk 0:02:14]}  Nc4 {[%clk 0:02:18]} 19. Bf4 {[%clk 0:01:52]}  Rha8 {[%clk 0:01:42]} 20. Rhe1 {[%clk 0:01:42]}  Bf6 {[%clk 0:01:40]} 21. Rd3 {[%clk 0:01:08]}  R8a7 {[%clk 0:00:57]} 22. Qf3 {[%clk 0:01:07]}  b4 {[%clk 0:00:58]} 23. Rxe6 {[%clk 0:00:57]}  fxe6 {[%clk 0:00:51]} 24. cxb4 {[%clk 0:00:50]}  Bxb2+ {[%clk 0:00:51]} 25. Kd1 {[%clk 0:00:49]}  Rxa3 {[%clk 0:00:43]} 26. Rxa3 {[%clk 0:00:37]}  Rxa3 {[%clk 0:00:43]} 27. Qb7 {[%clk 0:00:34]}  Nb6 {[%clk 0:00:23]} 28. b5 {[%clk 0:00:30]}  Nd5 {[%clk 0:00:16]} 29. Qc6+ {[%clk 0:00:28]}  Kd8 {[%clk 0:00:16]} 30. Bxd6 {[%clk 0:00:25]}  Ra1+ {[%clk 0:00:09]} 31. Ke2 {[%clk 0:00:20]}  cxd6 {[%clk 0:00:06]} 32. Qxd6+ {[%clk 0:00:21]}  Ke8 {[%clk 0:00:06]} 33. Qxe6+ {[%clk 0:00:18]}  Ne7 {[%clk 0:00:07]} 34. b6 {[%clk 0:00:16]}  Bd4 {[%clk 0:00:07]} 35. b7 {[%clk 0:00:14]}  Rb1 {[%clk 0:00:05]} 36. Qc8+ {[%clk 0:00:13]}  Kf7 {[%clk 0:00:06]} 37. b8=Q {[%clk 0:00:13]} 1-0


[Site "https://www.chess.com"]

[Event "Titled Tuesday Blitz March 01 Early 2022"]
[White "Jaskolka, Tomasz"]
[Black "Gelman, Alexander"]
[WhiteFideId "1170791"]
[BlackFideId "4118316"]
[WhiteElo "2054"]
[BlackElo "2375"]
[Result "0-1"]
[Round "03"]
[TimeControl "180+1"]
[Date "2022.03.01"]
[WhiteClock "0:00:03"]
[BlackClock "0:00:12"]

1. d4 {[%clk 0:03:00]}  Nf6 {[%clk 0:02:59]} 2. Bf4 {[%clk 0:03:00]}  b6 {[%clk 0:02:58]} 3. e3 {[%clk 0:02:58]}  Bb7 {[%clk 0:02:59]} 4. Nd2 {[%clk 0:02:59]}  d6 {[%clk 0:02:59]} 5. Ngf3 {[%clk 0:02:58]}  Nbd7 {[%clk 0:02:59]} 6. Be2 {[%clk 0:02:57]}  c5 {[%clk 0:02:59]} 7. O-O {[%clk 0:02:57]}  Nh5 {[%clk 0:02:56]} 8. Bg3 {[%clk 0:02:53]}  g6 {[%clk 0:02:52]} 9. c3 {[%clk 0:02:53]}  Nxg3 {[%clk 0:02:52]} 10. hxg3 {[%clk 0:02:53]}  Bg7 {[%clk 0:02:52]} 11. e4 {[%clk 0:02:49]}  O-O {[%clk 0:02:50]} 12. Re1 {[%clk 0:02:49]}  cxd4 {[%clk 0:02:46]} 13. cxd4 {[%clk 0:02:49]}  Rc8 {[%clk 0:02:45]} 14. Rc1 {[%clk 0:02:48]}  Rxc1 {[%clk 0:02:33]} 15. Qxc1 {[%clk 0:02:48]}  Qa8 {[%clk 0:02:33]} 16. Bd3 {[%clk 0:02:39]}  Rc8 {[%clk 0:02:32]} 17. Qb1 {[%clk 0:02:39]}  Nf8 {[%clk 0:02:23]} 18. d5 {[%clk 0:02:01]}  Nd7 {[%clk 0:02:20]} 19. b4 {[%clk 0:01:57]}  a5 {[%clk 0:02:08]} 20. a3 {[%clk 0:01:54]}  axb4 {[%clk 0:02:07]} 21. axb4 {[%clk 0:01:55]}  Qa3 {[%clk 0:02:04]} 22. Nc4 {[%clk 0:01:36]}  Qa4 {[%clk 0:01:51]} 23. Rc1 {[%clk 0:01:29]}  Ba6 {[%clk 0:01:45]} 24. Nfd2 {[%clk 0:01:09]}  Bb5 {[%clk 0:01:26]} 25. Qb3 {[%clk 0:01:03]}  Qa6 {[%clk 0:01:17]} 26. Rc2 {[%clk 0:00:39]}  Qa1+ {[%clk 0:01:05]} 27. Kh2 {[%clk 0:00:39]}  Qe1 {[%clk 0:00:46]} 28. Nf3 {[%clk 0:00:31]}  Qa1 {[%clk 0:00:45]} 29. Nfd2 {[%clk 0:00:30]}  Ra8 {[%clk 0:00:41]} 30. g4 {[%clk 0:00:10]}  Ba4 {[%clk 0:00:33]} 31. Qa2 {[%clk 0:00:08]}  Bxc2 {[%clk 0:00:33]} 32. Qxc2 {[%clk 0:00:09]}  Rc8 {[%clk 0:00:30]} 33. Qb3 {[%clk 0:00:09]}  Qd4 {[%clk 0:00:30]} 34. f3 {[%clk 0:00:08]}  Qf2 {[%clk 0:00:28]} 35. Qc2 {[%clk 0:00:04]}  Bd4 {[%clk 0:00:28]} 36. Qd1 {[%clk 0:00:03]}  b5 {[%clk 0:00:27]} 37. Na5 {[%clk 0:00:02]}  Ne5 {[%clk 0:00:24]} 38. Bxb5 {[%clk 0:00:02]}  Be3 {[%clk 0:00:22]} 39. Nab3 {[%clk 0:00:02]}  Rc3 {[%clk 0:00:21]} 40. Qe2 {[%clk 0:00:02]}  Qg1+ {[%clk 0:00:18]} 41. Kg3 {[%clk 0:00:03]}  Bxd2 {[%clk 0:00:17]} 42. Nxd2 {[%clk 0:00:02]}  Qd4 {[%clk 0:00:13]} 43. Bc6 {[%clk 0:00:03]}  Qxb4 {[%clk 0:00:13]} 44. Be8 {[%clk 0:00:02]}  Qb2 {[%clk 0:00:12]} 45. Bc6 {[%clk 0:00:02]}  Rc2 {[%clk 0:00:12]} 46. Qa6 {[%clk 0:00:02]}  Rxd2 {[%clk 0:00:12]} 47. Qc8+ {[%clk 0:00:02]}  Kg7 {[%clk 0:00:13]} 48. Kf4 {[%clk 0:00:02]}  Rxg2 {[%clk 0:00:12]} 49. Qd8 {[%clk 0:00:03]}  Qd2# {[%clk 0:00:12]} 0-1


[Site "https://www.chess.com"]

[Event "Titled Tuesday Blitz March 01 Early 2022"]
[White "Kanyamarala, Trisha"]
[Black "De Silva, L M S T"]
[WhiteFideId "45004722"]
[BlackFideId "9953698"]
[WhiteElo "2002"]
[BlackElo "1631"]
[Result "0-1"]
[Round "03"]
[TimeControl "180+1"]
[Date "2022.03.01"]
[WhiteClock "0:00:01"]
[BlackClock "0:01:28"]

1. c4 {[%clk 0:02:56]}  e5 {[%clk 0:02:59]} 2. Nc3 {[%clk 0:02:56]}  Nf6 {[%clk 0:03:00]} 3. d3 {[%clk 0:02:51]}  d5 {[%clk 0:03:00]} 4. cxd5 {[%clk 0:02:51]}  Nxd5 {[%clk 0:03:00]} 5. g3 {[%clk 0:02:51]}  Nc6 {[%clk 0:03:01]} 6. Bg2 {[%clk 0:02:51]}  Be6 {[%clk 0:03:00]} 7. Nf3 {[%clk 0:02:50]}  Be7 {[%clk 0:02:59]} 8. O-O {[%clk 0:02:48]}  Nb6 {[%clk 0:02:59]} 9. a3 {[%clk 0:02:44]}  a5 {[%clk 0:02:58]} 10. b3 {[%clk 0:02:39]}  a4 {[%clk 0:02:55]} 11. b4 {[%clk 0:02:38]}  Bf6 {[%clk 0:02:51]} 12. Ne4 {[%clk 0:02:32]}  Be7 {[%clk 0:02:51]} 13. Bb2 {[%clk 0:02:24]}  f5 {[%clk 0:02:51]} 14. Nc5 {[%clk 0:02:15]}  Bxc5 {[%clk 0:02:51]} 15. bxc5 {[%clk 0:02:16]}  Nd7 {[%clk 0:02:52]} 16. Qc1 {[%clk 0:02:10]}  O-O {[%clk 0:02:49]} 17. d4 {[%clk 0:01:56]}  e4 {[%clk 0:02:45]} 18. Ng5 {[%clk 0:01:51]}  Bd5 {[%clk 0:02:45]} 19. Nh3 {[%clk 0:01:45]}  Na5 {[%clk 0:02:37]} 20. Qc2 {[%clk 0:01:30]}  Nf6 {[%clk 0:02:33]} 21. Nf4 {[%clk 0:01:28]}  Nb3 {[%clk 0:02:33]} 22. Rad1 {[%clk 0:01:24]}  c6 {[%clk 0:02:33]} 23. f3 {[%clk 0:01:11]}  Re8 {[%clk 0:02:31]} 24. Nxd5 {[%clk 0:01:03]}  Nxd5 {[%clk 0:02:29]} 25. fxe4 {[%clk 0:00:50]}  Ne3 {[%clk 0:02:27]} 26. Qd3 {[%clk 0:00:50]}  Nxd1 {[%clk 0:02:26]} 27. Rxd1 {[%clk 0:00:49]}  Qe7 {[%clk 0:02:22]} 28. e5 {[%clk 0:00:38]}  Rad8 {[%clk 0:02:20]} 29. Qc4+ {[%clk 0:00:36]}  Qf7 {[%clk 0:02:19]} 30. Qxa4 {[%clk 0:00:35]}  Rxe5 {[%clk 0:02:16]} 31. Rd3 {[%clk 0:00:29]}  Nxc5 {[%clk 0:01:35]} 32. dxc5 {[%clk 0:00:09]}  Rxd3 {[%clk 0:01:36]} 33. exd3 {[%clk 0:00:09]}  Re1+ {[%clk 0:01:35]} 34. Kf2 {[%clk 0:00:09]}  Qe7 {[%clk 0:01:30]} 35. Qa8+ {[%clk 0:00:08]}  Kf7 {[%clk 0:01:30]} 36. Bf3 {[%clk 0:00:01]}  Qe3+ {[%clk 0:01:27]} 37. Kg2 {[%clk 0:00:01]}  Rg1+ {[%clk 0:01:27]} 38. Kh3 {[%clk 0:00:01]}  Qh6+ {[%clk 0:01:28]} 0-1


[Site "https://www.chess.com"]

[Event "Titled Tuesday Blitz March 01 Early 2022"]
[White "Karttunen, Mika"]
[Black "Timofeev, Artyom"]
[WhiteFideId "502081"]
[BlackFideId "4140419"]
[WhiteElo "2343"]
[BlackElo "2583"]
[Result "0-1"]
[Round "03"]
[TimeControl "180+1"]
[Date "2022.03.01"]
[WhiteClock "0:00:08"]
[BlackClock "0:00:14"]

1. e4 {[%clk 0:03:00]}  c5 {[%clk 0:02:59]} 2. Nf3 {[%clk 0:03:00]}  Nc6 {[%clk 0:02:59]} 3. d4 {[%clk 0:03:01]}  cxd4 {[%clk 0:02:59]} 4. Nxd4 {[%clk 0:03:01]}  e5 {[%clk 0:02:59]} 5. Nb5 {[%clk 0:03:01]}  a6 {[%clk 0:03:00]} 6. Nd6+ {[%clk 0:03:00]}  Bxd6 {[%clk 0:03:00]} 7. Qxd6 {[%clk 0:03:00]}  Qe7 {[%clk 0:03:00]} 8. Qc7 {[%clk 0:02:38]}  d5 {[%clk 0:02:54]} 9. Qxe7+ {[%clk 0:02:30]}  Ngxe7 {[%clk 0:02:53]} 10. exd5 {[%clk 0:02:27]}  Nxd5 {[%clk 0:02:53]} 11. c3 {[%clk 0:02:27]}  Be6 {[%clk 0:02:47]} 12. Nd2 {[%clk 0:02:25]}  O-O-O {[%clk 0:02:47]} 13. Ne4 {[%clk 0:02:24]}  f5 {[%clk 0:02:39]} 14. Nc5 {[%clk 0:02:22]}  Bf7 {[%clk 0:02:38]} 15. Bg5 {[%clk 0:02:21]}  Nf6 {[%clk 0:02:27]} 16. Bxf6 {[%clk 0:02:14]}  gxf6 {[%clk 0:02:27]} 17. b3 {[%clk 0:01:54]}  Kc7 {[%clk 0:02:23]} 18. Rd1 {[%clk 0:01:53]}  a5 {[%clk 0:02:20]} 19. Be2 {[%clk 0:01:35]}  b6 {[%clk 0:02:17]} 20. Rxd8 {[%clk 0:01:33]}  Rxd8 {[%clk 0:02:16]} 21. Na4 {[%clk 0:01:28]}  f4 {[%clk 0:02:10]} 22. g3 {[%clk 0:01:25]}  Bg6 {[%clk 0:01:53]} 23. Nb2 {[%clk 0:01:13]}  Bb1 {[%clk 0:01:48]} 24. a4 {[%clk 0:01:04]}  Bc2 {[%clk 0:01:46]} 25. Bd1 {[%clk 0:01:04]}  Bxd1 {[%clk 0:01:37]} 26. Nxd1 {[%clk 0:01:04]}  f3 {[%clk 0:01:38]} 27. Nb2 {[%clk 0:00:59]}  e4 {[%clk 0:01:35]} 28. Nc4 {[%clk 0:00:56]}  Rd3 {[%clk 0:01:35]} 29. Ne3 {[%clk 0:00:56]}  Kb7 {[%clk 0:01:26]} 30. Nd1 {[%clk 0:00:56]}  f5 {[%clk 0:01:24]} 31. O-O {[%clk 0:00:56]}  Ne5 {[%clk 0:01:23]} 32. h3 {[%clk 0:00:55]}  h5 {[%clk 0:01:22]} 33. Ne3 {[%clk 0:00:48]}  Rxc3 {[%clk 0:01:14]} 34. Nxf5 {[%clk 0:00:49]}  Rxb3 {[%clk 0:01:14]} 35. Nd6+ {[%clk 0:00:49]}  Ka6 {[%clk 0:01:11]} 36. Nxe4 {[%clk 0:00:50]}  Rb4 {[%clk 0:01:08]} 37. Nf6 {[%clk 0:00:28]}  h4 {[%clk 0:01:08]} 38. g4 {[%clk 0:00:28]}  Rxa4 {[%clk 0:01:07]} 39. Re1 {[%clk 0:00:28]}  Ng6 {[%clk 0:00:55]} 40. Re3 {[%clk 0:00:28]}  Ra1+ {[%clk 0:00:46]} 41. Kh2 {[%clk 0:00:28]}  a4 {[%clk 0:00:46]} 42. Nd5 {[%clk 0:00:25]}  Kb5 {[%clk 0:00:44]} 43. Nxb6 {[%clk 0:00:24]}  Kxb6 {[%clk 0:00:40]} 44. Re6+ {[%clk 0:00:24]}  Kb5 {[%clk 0:00:39]} 45. Rxg6 {[%clk 0:00:25]}  a3 {[%clk 0:00:37]} 46. Rg8 {[%clk 0:00:21]}  Rf1 {[%clk 0:00:34]} 47. Rb8+ {[%clk 0:00:18]}  Kc4 {[%clk 0:00:33]} 48. Rc8+ {[%clk 0:00:16]}  Kd3 {[%clk 0:00:32]} 49. Rd8+ {[%clk 0:00:16]}  Ke2 {[%clk 0:00:31]} 50. Re8+ {[%clk 0:00:16]}  Kxf2 {[%clk 0:00:31]} 51. Ra8 {[%clk 0:00:16]}  Ra1 {[%clk 0:00:27]} 52. g5 {[%clk 0:00:16]}  Ke3 {[%clk 0:00:26]} 53. g6 {[%clk 0:00:16]}  f2 {[%clk 0:00:26]} 54. Re8+ {[%clk 0:00:15]}  Kd3 {[%clk 0:00:19]} 55. Rd8+ {[%clk 0:00:15]}  Kc4 {[%clk 0:00:19]} 56. g7 {[%clk 0:00:15]}  Rg1 {[%clk 0:00:16]} 57. Rf8 {[%clk 0:00:11]}  Rxg7 {[%clk 0:00:15]} 58. Rxf2 {[%clk 0:00:11]}  Ra7 {[%clk 0:00:15]} 59. Rf4+ {[%clk 0:00:11]}  Kd3 {[%clk 0:00:15]} 60. Rf3+ {[%clk 0:00:08]}  Ke2 {[%clk 0:00:14]} 0-1


[Site "https://www.chess.com"]

[Event "Titled Tuesday Blitz March 01 Early 2022"]
[White "Kett, Tim"]
[Black "Kozusek, Daniel"]
[WhiteFideId "1801210"]
[BlackFideId "349500"]
[WhiteElo "2098"]
[BlackElo "2206"]
[Result "1-0"]
[Round "03"]
[TimeControl "180+1"]
[Date "2022.03.01"]
[WhiteClock "0:00:27"]
[BlackClock "0:00:02"]

1. e4 {[%clk 0:02:59]}  e6 {[%clk 0:02:46]} 2. d4 {[%clk 0:02:58]}  d5 {[%clk 0:02:45]} 3. e5 {[%clk 0:02:59]}  c5 {[%clk 0:02:42]} 4. c3 {[%clk 0:02:59]}  Nc6 {[%clk 0:02:41]} 5. Nf3 {[%clk 0:02:59]}  Qb6 {[%clk 0:02:40]} 6. Bd3 {[%clk 0:02:59]}  cxd4 {[%clk 0:02:36]} 7. O-O {[%clk 0:02:55]}  Bd7 {[%clk 0:02:29]} 8. cxd4 {[%clk 0:02:34]}  Nxd4 {[%clk 0:02:30]} 9. Nxd4 {[%clk 0:02:35]}  Qxd4 {[%clk 0:02:30]} 10. Nc3 {[%clk 0:02:35]}  Ne7 {[%clk 0:02:10]} 11. Nb5 {[%clk 0:02:22]}  Qxe5 {[%clk 0:02:04]} 12. Qf3 {[%clk 0:02:16]}  Bxb5 {[%clk 0:01:54]} 13. Bxb5+ {[%clk 0:02:15]}  Nc6 {[%clk 0:01:54]} 14. Bf4 {[%clk 0:02:13]}  Qf6 {[%clk 0:01:53]} 15. Rac1 {[%clk 0:02:08]}  Rc8 {[%clk 0:01:52]} 16. Rfe1 {[%clk 0:02:07]}  g5 {[%clk 0:01:40]} 17. Qxd5 {[%clk 0:01:50]}  gxf4 {[%clk 0:01:27]} 18. Rxc6 {[%clk 0:01:47]}  bxc6 {[%clk 0:01:06]} 19. Bxc6+ {[%clk 0:01:46]}  Rxc6 {[%clk 0:01:07]} 20. Qxc6+ {[%clk 0:01:45]}  Ke7 {[%clk 0:01:08]} 21. Qc7+ {[%clk 0:01:08]}  Ke8 {[%clk 0:01:08]} 22. Rd1 {[%clk 0:01:09]}  Bd6 {[%clk 0:00:23]} 23. Qxd6 {[%clk 0:01:00]}  h5 {[%clk 0:00:10]} 24. Rc1 {[%clk 0:00:36]}  Qd8 {[%clk 0:00:08]} 25. Qxf4 {[%clk 0:00:30]}  Qd7 {[%clk 0:00:02]} 26. Qb8+ {[%clk 0:00:27]} 1-0


[Site "https://www.chess.com"]

[Event "Titled Tuesday Blitz March 01 Early 2022"]
[White "Kosakowski, Jakub"]
[Black "Cruz Ravina, Francisco Javier"]
[WhiteFideId "1185080"]
[BlackFideId "2228939"]
[WhiteElo "2476"]
[BlackElo "2499"]
[Result "1-0"]
[Round "03"]
[TimeControl "180+1"]
[Date "2022.03.01"]
[WhiteClock "0:00:24"]
[BlackClock "0:00:05"]

1. e4 {[%clk 0:03:00]}  d5 {[%clk 0:02:59]} 2. exd5 {[%clk 0:03:00]}  Nf6 {[%clk 0:02:59]} 3. Nf3 {[%clk 0:02:59]}  Nxd5 {[%clk 0:02:58]} 4. d4 {[%clk 0:02:59]}  Bf5 {[%clk 0:02:58]} 5. Bd3 {[%clk 0:02:49]}  Bxd3 {[%clk 0:02:56]} 6. Qxd3 {[%clk 0:02:49]}  c6 {[%clk 0:02:56]} 7. c4 {[%clk 0:02:45]}  Nf6 {[%clk 0:02:56]} 8. O-O {[%clk 0:02:43]}  e6 {[%clk 0:02:55]} 9. Nc3 {[%clk 0:02:42]}  Be7 {[%clk 0:02:55]} 10. Be3 {[%clk 0:02:36]}  O-O {[%clk 0:02:53]} 11. Rad1 {[%clk 0:02:36]}  Nbd7 {[%clk 0:02:53]} 12. d5 {[%clk 0:02:30]}  exd5 {[%clk 0:01:57]} 13. cxd5 {[%clk 0:02:31]}  cxd5 {[%clk 0:01:56]} 14. Nxd5 {[%clk 0:02:30]}  Re8 {[%clk 0:01:37]} 15. Qb3 {[%clk 0:01:47]}  Nxd5 {[%clk 0:01:14]} 16. Qxd5 {[%clk 0:01:46]}  Nf6 {[%clk 0:00:52]} 17. Qxb7 {[%clk 0:01:45]}  Qa5 {[%clk 0:00:38]} 18. b3 {[%clk 0:00:49]}  Rab8 {[%clk 0:00:26]} 19. Qxa7 {[%clk 0:00:48]}  Qxa7 {[%clk 0:00:23]} 20. Bxa7 {[%clk 0:00:48]}  Ra8 {[%clk 0:00:22]} 21. Bd4 {[%clk 0:00:48]}  Rxa2 {[%clk 0:00:21]} 22. Rfe1 {[%clk 0:00:48]}  Raa8 {[%clk 0:00:16]} 23. g3 {[%clk 0:00:33]}  Rab8 {[%clk 0:00:14]} 24. Rd3 {[%clk 0:00:33]}  Nd5 {[%clk 0:00:11]} 25. Be5 {[%clk 0:00:27]}  Rb5 {[%clk 0:00:09]} 26. Nd4 {[%clk 0:00:25]}  Rc5 {[%clk 0:00:09]} 27. Bd6 {[%clk 0:00:25]}  Nb4 {[%clk 0:00:05]} 28. Bxc5 {[%clk 0:00:24]}  Nxd3 {[%clk 0:00:05]} 29. Rxe7 {[%clk 0:00:24]} 1-0


[Site "https://www.chess.com"]

[Event "Titled Tuesday Blitz March 01 Early 2022"]
[White "Krishnan, Varun"]
[Black "Khamdamova, Afruza"]
[WhiteFideId "5054508"]
[BlackFideId "14210444"]
[WhiteElo "2580"]
[BlackElo "1660"]
[Result "1-0"]
[Round "03"]
[TimeControl "180+1"]
[Date "2022.03.01"]
[WhiteClock "0:01:24"]
[BlackClock "0:01:01"]

1. e4 {[%clk 0:03:00]}  e5 {[%clk 0:02:59]} 2. Nf3 {[%clk 0:03:00]}  Nf6 {[%clk 0:02:59]} 3. Nxe5 {[%clk 0:02:58]}  d6 {[%clk 0:02:59]} 4. Nf3 {[%clk 0:02:59]}  Nxe4 {[%clk 0:02:59]} 5. Nc3 {[%clk 0:02:59]}  Nxc3 {[%clk 0:02:58]} 6. dxc3 {[%clk 0:03:00]}  Nc6 {[%clk 0:02:58]} 7. Bf4 {[%clk 0:03:00]}  Be7 {[%clk 0:02:58]} 8. Qd2 {[%clk 0:03:01]}  Be6 {[%clk 0:02:57]} 9. O-O-O {[%clk 0:03:00]}  Qd7 {[%clk 0:02:57]} 10. Kb1 {[%clk 0:03:00]}  a6 {[%clk 0:02:56]} 11. h4 {[%clk 0:02:59]}  h6 {[%clk 0:02:54]} 12. Be2 {[%clk 0:02:58]}  O-O-O {[%clk 0:02:53]} 13. Nd4 {[%clk 0:02:57]}  Nxd4 {[%clk 0:02:50]} 14. cxd4 {[%clk 0:02:58]}  d5 {[%clk 0:02:48]} 15. Qa5 {[%clk 0:02:52]}  Qc6 {[%clk 0:02:39]} 16. Rd3 {[%clk 0:02:45]}  Bd6 {[%clk 0:02:10]} 17. Rc3 {[%clk 0:02:33]}  Qd7 {[%clk 0:02:09]} 18. Bxa6 {[%clk 0:02:25]}  c6 {[%clk 0:01:46]} 19. Bxd6 {[%clk 0:02:11]}  Qxd6 {[%clk 0:01:45]} 20. Qb6 {[%clk 0:01:59]}  Kd7 {[%clk 0:01:29]} 21. Bxb7 {[%clk 0:01:58]}  Ke7 {[%clk 0:01:21]} 22. Rxc6 {[%clk 0:01:48]}  Qf4 {[%clk 0:01:20]} 23. Qc7+ {[%clk 0:01:43]}  Qxc7 {[%clk 0:01:18]} 24. Rxc7+ {[%clk 0:01:44]}  Kf6 {[%clk 0:01:18]} 25. Ba6 {[%clk 0:01:40]}  Rb8 {[%clk 0:01:15]} 26. Bd3 {[%clk 0:01:33]}  g5 {[%clk 0:01:04]} 27. hxg5+ {[%clk 0:01:25]}  hxg5 {[%clk 0:01:03]} 28. Rxh8 {[%clk 0:01:24]}  Rxh8 {[%clk 0:01:03]} 29. a4 {[%clk 0:01:24]}  Rh2 {[%clk 0:01:01]} 30. a5 {[%clk 0:01:24]} 1-0


[Site "https://www.chess.com"]